[Event "XXXVIII Benasque Open 2018"]
[Site "Benasque"]
[Date "2018.07.11"]
[Round "7"]
[White "Iturrizaga Bonelli, Eduardo"]
[Black "Nasuta, Grzegorz"]
[Result "1-0"]
[ECO "A20"]
[WhiteElo "2652"]
[BlackElo "2491"]
[Annotator "ChessBase"]
[PlyCount "77"]
[EventDate "2018.07.05"]
[EventType "swiss"]
[EventCountry "ESP"]
[SourceTitle "playchess.com"]
[Source "ChessBase"]
[SourceQuality "1"]
[TimeControl "5400+30"]

1. c4 {[%emt 0:00:40]} e5 {[%emt 0:00:49]} 2. g3 {[%emt 0:00:05]} Nf6 {[%emt 0:00:16]} 3. Bg2 {[%emt 0:00:05]} d5 {[%emt 0:00:05]} 4. cxd5 {[%emt 0:00:04]} Nxd5 {[%emt 0:00:04]} 5. Nf3 {[%emt 0:00:05]} Nc6 {[%emt 0:01:35]} 6. O-O {[%emt 0:00:05]} Be7 {[%emt 0:03:57]} 7. d4 {[%emt 0:00:11]} e4 {[%emt 0:06:18]} 8. Ne5 {[%emt 0:01:45]} f5 {[%emt 0:01:11]} 9. Nxc6 {[%emt 0:00:06]} bxc6 {[%emt 0:00:05]} 10. Qc2 {[%emt 0:00:04]} Be6 {[%emt 0:27:37]} 11. Qxc6+ {[%emt 0:22:48]} Kf7 {[%emt 0:00:15]} 12. f3 {[%emt 0:00:03]} e3 {[%emt 0:17:39]} 13. Nc3 {[%emt 0:04:57]} Nb4 {[%emt 0:09:01]} 14. Qa4 {[%emt 0:02:02]} Qxd4 {[%emt 0:00:07]} 15. a3 {[%emt 0:03:35]} Bd7 {[%emt 0:08:36]} 16. Qd1 {[%emt 0:13:01]} Qxd1 {[%emt 0:04:02]} 17. Rxd1 {[%emt 0:00:05]} Nc2 {[%emt 0:00:04]} 18. Rxd7 {[%emt 0:01:52]} Nxa1 {[%emt 0:00:08]} 19. Nd5 {[%emt 0:00:37]} Rhe8 {[%emt 0:03:51]} 20. f4 {[%emt 0:08:46]} Rad8 {[%emt 0:02:24]} 21. Rxc7 {[%emt 0:00:06]} Rc8 {[%emt 0:00:06]} 22. Bxe3 {[%emt 0:00:03]} Rxc7 {[%emt 0:00:25]} 23. Nxc7 {[%emt 0:00:03]} Rc8 {[%emt 0:00:05]} 24. Bd5+ {[%emt 0:00:02]} Kg6 {[%emt 0:00:11]} 25. Ne6 {[%emt 0:00:03]} a5 {[%emt 0:02:48]} 26. Kf2 {[%emt 0:03:28]} Nc2 {[%emt 0:06:50]} 27. Bd2 {[%emt 0:01:53]} Bf6 {[%emt 0:00:33]} 28. Bxa5 {[%emt 0:08:05]} Bxb2 {[%emt 0:00:03]} 29. a4 {[%emt 0:00:33]} Bc3 {[%emt 0:01:18]} 30. Bb6 {[%emt 0:07:20]} Nb4 {[%emt 0:01:05]} 31. e4 {[%emt 0:02:44]} fxe4 {[%emt 0:01:38]} 32. Bxe4+ {[%emt 0:00:06]} Kf6 {[%emt 0:00:09]} 33. Ng5 {[%emt 0:05:35]} h6 {[%emt 0:01:04]} 34. Bb7 {[%emt 0:00:03]} Rb8 {[%emt 0:01:08]} 35. Ne4+ {[%emt 0:00:12]} Ke6 {[%emt 0:00:30]} 36. a5 {[%emt 0:01:44]} Kf7 {[%emt 0:01:30]} 37. Ba7 {[%emt 0:00:46]} Rd8 {[%emt 0:00:30]} 38. Nxc3 {[%emt 0:00:14]} Rd7 {[%emt 0:00:13]} 39. Nb5 {[%emt 0:00:25]} 1-0

[Event "XXXVIII Benasque Open 2018"]
[Site "Benasque"]
[Date "2018.07.11"]
[Round "7"]
[White "Banusz, Tamas"]
[Black "Ubilava, Elizbar"]
[Result "1-0"]
[ECO "E68"]
[WhiteElo "2607"]
[BlackElo "2478"]
[Annotator "ChessBase"]
[PlyCount "81"]
[EventDate "2018.07.05"]
[EventType "swiss"]
[EventCountry "ESP"]
[SourceTitle "playchess.com"]
[Source "ChessBase"]
[SourceQuality "1"]
[TimeControl "5400+30"]

1. Nf3 {[%emt 0:05:44]} Nf6 {[%emt 0:00:02]} 2. c4 {[%emt 0:00:05]} d6 {[%emt 0:00:52]} 3. d4 {[%emt 0:00:13]} g6 {[%emt 0:00:12]} 4. g3 {[%emt 0:00:03]} Bg7 {[%emt 0:00:11]} 5. Bg2 {[%emt 0:00:06]} O-O {[%emt 0:00:08]} 6. Nc3 {[%emt 0:00:07]} Nbd7 {[%emt 0:00:14]} 7. O-O {[%emt 0:00:07]} e5 {[%emt 0:00:05]} 8. e4 {[%emt 0:00:16]} a6 {[%emt 0:00:19]} 9. Qc2 {[%emt 0:01:49]} c6 {[%emt 0:05:11]} 10. Rd1 {[%emt 0:04:58]} Qe7 {[%emt 0:01:27]} 11. h3 {[%emt 0:04:12]} b5 {[%emt 0:03:28]} 12. c5 {[%emt 0:08:34]} dxc5 {[%emt 0:01:20]} 13. dxe5 {[%emt 0:00:04]} Nxe5 {[%emt 0:00:47]} 14. Nxe5 {[%emt 0:00:04]} Qxe5 {[%emt 0:00:08]} 15. Bf4 {[%emt 0:00:29]} Qh5 {[%emt 0:03:33]} 16. e5 {[%emt 0:07:10]} Nd5 {[%emt 0:09:55]} 17. Nxd5 {[%emt 0:03:13]} cxd5 {[%emt 0:00:14]} 18. g4 {[%emt 0:00:22]} Qh4 {[%emt 0:00:17]} 19. Qxc5 {[%emt 0:04:20]} Be6 {[%emt 0:02:00]} 20. Qe3 {[%emt 0:00:23]} Qd8 {[%emt 0:02:18]} 21. Rd2 {[%emt 0:06:34]} Qa5 {[%emt 0:14:29]} 22. Bxd5 {[%emt 0:09:31]} Rad8 {[%emt 0:00:07]} 23. Bxe6 {[%emt 0:01:26]} fxe6 {[%emt 0:00:08]} 24. Rxd8 {[%emt 0:09:39]} Rxd8 {[%emt 0:00:25]} 25. a3 {[%emt 0:00:34]} Qa4 {[%emt 0:00:15]} 26. Rc1 {[%emt 0:01:10]} Qd4 {[%emt 0:08:12]} 27. Qxd4 {[%emt 0:07:56]} Rxd4 {[%emt 0:00:12]} 28. Be3 {[%emt 0:00:11]} Re4 {[%emt 0:25:46]} 29. b4 {[%emt 0:02:15]} Bxe5 {[%emt 0:03:02]} 30. Rc6 {[%emt 0:00:15]} Bd4 {[%emt 0:06:00]} 31. Bxd4 {[%emt 0:00:37]} Rxd4 {[%emt 0:00:05]} 32. Rxa6 {[%emt 0:00:20]} Kf7 {[%emt 0:03:43]} 33. Ra7+ {[%emt 0:01:42]} Kg8 {[%emt 0:01:01]} 34. Kg2 {[%emt 0:00:53]} h5 {[%emt 0:00:37]} 35. Kg3 {[%emt 0:05:15]} hxg4 {[%emt 0:01:54]} 36. hxg4 {[%emt 0:00:04]} g5 {[%emt 0:03:26]} 37. f3 {[%emt 0:01:29]} Rd3 {[%emt 0:02:22]} 38. Rb7 {[%emt 0:02:09]} Rd5 {[%emt 0:00:21]} 39. Kf2 {[%emt 0:00:31]} Kf8 {[%emt 0:01:07]} 40. Ke3 {[%emt 0:00:39]} Ke8 {[%emt 0:00:29]} 41. Rc7 {[%emt 0:00:44]} 1-0

[Event "XXXVIII Benasque Open 2018"]
[Site "Benasque"]
[Date "2018.07.11"]
[Round "7"]
[White "Chigaev, Maksim"]
[Black "Munguntuul, Batkhuyag"]
[Result "1-0"]
[ECO "B48"]
[WhiteElo "2582"]
[BlackElo "2417"]
[Annotator "RC"]
[PlyCount "101"]
[EventDate "2018.07.05"]
[EventType "swiss"]
[EventCountry "ESP"]
[SourceTitle "playchess.com"]
[Source "ChessBase"]
[SourceQuality "1"]
[TimeControl "5400+30"]

1. e4 {[%emt 0:00:00]} c5 {[%emt 0:00:00]} 2. Nf3 {[%emt 0:00:00]} e6 {[%emt 0:00:04]} 3. d4 {[%emt 0:00:00]} cxd4 {[%emt 0:00:07]} 4. Nxd4 {[%emt 0:00:00]} Nc6 {[%emt 0:00:12]} 5. Nc3 {[%emt 0:00:00]} Qc7 {[%emt 0:00:12]} 6. Be3 {[%emt 0:00:00]} a6 {[%emt 0:00:10]} 7. Qd2 {[%emt 0:00:03]} Nf6 {[%emt 0:00:08]} 8. O-O-O {[%emt 0:00:06]} Bb4 {[%emt 0:00:33]} 9. f3 {[%emt 0:00:06]} O-O {[%emt 0:00:09]} 10. a3 {[%emt 0:00:06]} Be7 {[%emt 0:00:20]} 11. g4 {[%emt 0:00:05]} b5 {[%emt 0:00:38]} 12. h4 {[%emt 0:00:09]} Bb7 {[%emt 0:18:55]} 13. h5 {[%emt 0:04:44]} Nxd4 {[%emt 0:03:33]} 14. Bxd4 {[%emt 0:05:33]} e5 {[%emt 0:02:15]} 15. Qh2 {[%emt 0:00:16]} Bd6 {[%emt 0:00:54]} 16. Be3 {[%emt 0:05:24]} Bxa3 {[%emt 0:04:25]} 17. Rd3 {[%emt 0:00:32]} Bc5 {[%emt 0:11:18]} 18. Bxc5 {[%emt 0:00:34]} Qxc5 {[%emt 0:00:02]} 19. g5 {[%emt 0:00:13]} Ne8 {[%emt 0:00:20]} 20. h6 {[%emt 0:02:41]} g6 {[%emt 0:00:36]} 21. Rxd7 {[%emt 0:00:36]} Bc6 {[%emt 0:04:23]} 22. Nd5 {[%emt 0:14:10]} Bxd5 {[%emt 0:03:04]} 23. Rxd5 {[%emt 0:00:28]} Qe3+ {[%emt 0:00:32]} 24. Qd2 {[%emt 0:00:08]} Qxf3 {[%emt 0:03:32]} 25. Bg2 {[%emt 0:00:08]} Qf4 {[%emt 0:00:33]} 26. Rf1 {[%emt 0:01:03]} Qxd2+ {[%emt 0:00:19]} 27. Kxd2 {[%emt 0:00:08]} Nc7 {[%emt 0:02:50]} 28. Rxe5 {[%emt 0:00:27]} Rfe8 {[%emt 0:00:45]} 29. Rxe8+ {[%emt 0:18:18]} Rxe8 {[%emt 0:00:28]} 30. Ke3 {[%emt 0:00:06]} Re5 {[%emt 0:08:41]} 31. Kf4 {[%emt 0:02:38]} Rc5 {[%emt 0:00:05]} 32. Bh3 {[%emt 0:00:03]} Rxc2 {[%emt 0:06:22]} 33. Rd1 {[%emt 0:04:09]} Kf8 {[%emt 0:00:18]} 34. b4 {[%emt 0:02:03]} Rc4 {[%emt 0:07:26]} 35. Ke5 {[%emt 0:06:45]} Ne8 {[%emt 0:00:37]} 36. Rd8 {[%emt 0:04:09]} Ke7 {[%emt 0:00:52]} 37. Rd7+ {[%emt 0:02:50]} Kf8 {[%emt 0:00:01]} 38. Ra7 {[%emt 0:01:02]} Nc7 {[%emt 0:00:40]} 39. Bc8 {[%emt 0:01:35]} Rc6 {[%emt 0:00:30]} 40. Bd7 {[%emt 0:02:42]} Rc1 {[%emt 0:00:33]} 41. Kd6 {[%emt 0:01:56]} Ne8+ {[%emt 0:00:40]} 42. Bxe8 {[%emt 0:00:05]} Rd1+ {[%emt 0:00:03]} 43. Ke5 {[%emt 0:00:11]} Kxe8 {[%emt 0:00:02]} 44. Kf6 {[%emt 0:00:07]} Rd4 {[%emt 0:13:15]} 45. Kg7 {[%emt 0:00:20]} Rxb4 {[%emt 0:04:16]} 46. Kxh7 {[%emt 0:00:15]} Kf8 {[%emt 0:00:04]} 47. Ra8+ {[%emt 0:00:11]} Ke7 {[%emt 0:00:01]} 48. Kg7 {[%emt 0:00:09]} Rxe4 {[%emt 0:00:09]} 49. h7 {[%emt 0:00:07]} Rh4 {[%emt 0:00:05]} 50. Rxa6 {[%emt 0:00:23]} b4 {[%emt 0:00:25]} 51. Rb6 {[%emt 0:00:16]} 1-0

[Event "XXXVIII Benasque Open 2018"]
[Site "Benasque"]
[Date "2018.07.11"]
[Round "7"]
[White "Kharitonov, Alexandr"]
[Black "Vocaturo, Daniele"]
[Result "1/2-1/2"]
[ECO "E32"]
[WhiteElo "2564"]
[BlackElo "2609"]
[Annotator "ChessBase"]
[PlyCount "57"]
[EventDate "2018.07.05"]
[EventType "swiss"]
[EventCountry "ESP"]
[SourceTitle "playchess.com"]
[Source "ChessBase"]
[SourceQuality "1"]
[TimeControl "5400+30"]

1. d4 {[%emt 0:00:50]} Nf6 {[%emt 0:00:00]} 2. c4 {[%emt 0:00:06]} e6 {[%emt 0:00:18]} 3. Nc3 {[%emt 0:00:24]} Bb4 {[%emt 0:00:48]} 4. Qc2 {[%emt 0:00:12]} O-O {[%emt 0:00:48]} 5. a3 {[%emt 0:00:18]} Bxc3+ {[%emt 0:00:08]} 6. Qxc3 {[%emt 0:00:07]} d5 {[%emt 0:00:48]} 7. Nf3 {[%emt 0:04:03]} dxc4 {[%emt 0:01:23]} 8. Qxc4 {[%emt 0:00:12]} b6 {[%emt 0:00:34]} 9. Bg5 {[%emt 0:00:37]} Ba6 {[%emt 0:00:53]} 10. Qa4 {[%emt 0:00:33]} c5 {[%emt 0:01:38]} 11. dxc5 {[%emt 0:00:58]} bxc5 {[%emt 0:03:36]} 12. Rc1 {[%emt 0:00:07]} Qb6 {[%emt 0:02:47]} 13. Bxf6 {[%emt 0:00:16]} gxf6 {[%emt 0:00:06]} 14. Rc2 {[%emt 0:00:36]} Rd8 {[%emt 0:09:58]} 15. e3 {[%emt 0:00:45]} Bxf1 {[%emt 0:00:15]} 16. Rxf1 {[%emt 0:00:07]} Nc6 {[%emt 0:01:46]} 17. Ke2 {[%emt 0:01:33]} Na5 {[%emt 0:05:08]} 18. b4 {[%emt 0:11:53]} cxb4 {[%emt 0:00:57]} 19. axb4 {[%emt 0:00:05]} Qd6 {[%emt 0:00:18]} 20. Rd2 {[%emt 0:02:50]} Qc6 {[%emt 0:00:14]} 21. Rxd8+ {[%emt 0:04:18]} Rxd8 {[%emt 0:00:11]} 22. Qxc6 {[%emt 0:00:03]} Nxc6 {[%emt 0:00:06]} 23. b5 {[%emt 0:00:04]} Ne7 {[%emt 0:00:32]} 24. Nd4 {[%emt 0:11:00]} Rd5 {[%emt 0:28:58]} 25. Rc1 {[%emt 0:14:48]} Nf5 {[%emt 0:02:56]} 26. Nxf5 {[%emt 0:08:54]} Rxf5 {[%emt 0:00:28]} 27. Rc8+ {[%emt 0:00:49]} Kg7 {[%emt 0:00:06]} 28. Rb8 {[%emt 0:00:04]} Rd5 {[%emt 0:00:45]} 29. Rb7 {[%emt 0:04:36]} 1/2-1/2

[Event "XXXVIII Benasque Open 2018"]
[Site "Benasque"]
[Date "2018.07.11"]
[Round "7"]
[White "Zoler, Dan"]
[Black "Lalic, Bogdan"]
[Result "1/2-1/2"]
[ECO "D80"]
[WhiteElo "2506"]
[BlackElo "2394"]
[Annotator "ChessBase"]
[PlyCount "48"]
[EventDate "2018.07.05"]
[EventType "swiss"]
[EventCountry "ESP"]
[SourceTitle "playchess.com"]
[Source "ChessBase"]
[SourceQuality "1"]
[TimeControl "5400+30"]

1. d4 {[%emt 0:00:00]} Nf6 {[%emt 0:01:38]} 2. c4 {[%emt 0:00:00]} g6 {[%emt 0:00:17]} 3. Nc3 {[%emt 0:00:00]} d5 {[%emt 0:00:07]} 4. e3 {[%emt 0:00:03]} Bg7 {[%emt 0:00:07]} 5. cxd5 {[%emt 0:00:14]} Nxd5 {[%emt 0:00:07]} 6. Nxd5 {[%emt 0:00:10]} Qxd5 {[%emt 0:00:07]} 7. Ne2 {[%emt 0:00:08]} O-O {[%emt 0:00:16]} 8. Nc3 {[%emt 0:00:09]} Qd6 {[%emt 0:00:25]} 9. Be2 {[%emt 0:00:10]} c6 {[%emt 0:01:12]} 10. O-O {[%emt 0:00:36]} Nd7 {[%emt 0:00:15]} 11. Ne4 {[%emt 0:03:44]} Qc7 {[%emt 0:01:06]} 12. Qc2 {[%emt 0:09:38]} Nf6 {[%emt 0:00:30]} 13. Nxf6+ {[%emt 0:05:33]} Bxf6 {[%emt 0:00:08]} 14. Bd2 {[%emt 0:00:09]} Rd8 {[%emt 0:01:42]} 15. Bf3 {[%emt 0:02:11]} Be6 {[%emt 0:05:41]} 16. Rac1 {[%emt 0:07:33]} Qb6 {[%emt 0:07:19]} 17. b4 {[%emt 0:03:20]} Bd5 {[%emt 0:00:45]} 18. Bg4 {[%emt 0:04:54]} Bg7 {[%emt 0:11:08]} 19. a4 {[%emt 0:07:00]} f5 {[%emt 0:00:17]} 20. Be2 {[%emt 0:01:41]} e5 {[%emt 0:00:15]} 21. dxe5 {[%emt 0:04:54]} Bxe5 {[%emt 0:00:06]} 22. Rfd1 {[%emt 0:03:26]} Qc7 {[%emt 0:00:31]} 23. f4 {[%emt 0:02:57]} Bg7 {[%emt 0:03:06]} 24. b5 {[%emt 0:14:09]} Qe7 {[%emt 0:00:46]} 1/2-1/2